[Event "Chinese Championship-B Men 2024"]
[Site "Liaocheng"]
[Date "2024.04.24"]
[Round "6.4"]
[White "Wu, Yixing"]
[Black "Liu, Aiwei"]
[Result "1-0"]
[WhiteElo "2348"]
[BlackElo "1954"]
[PlyCount "127"]
[EventDate "2024.04.24"]
[EventType "swiss"]
[EventCountry "CHN"]
[TimeControl "5400+30"]

1. Nf3 {[%emt 0:00:03]} d5 {[%emt 0:00:11]} 2. e3 {[%emt 0:00:06]} Nf6 {[%emt 0:00:19]} 3. c4 {[%emt 0:00:06]} e6 {[%emt 0:01:58]} 4. Nc3 {[%emt 0:00:05]} Be7 {[%emt 0:00:34]} 5. b3 {[%emt 0:00:07]} c5 {[%emt 0:02:05]} 6. cxd5 {[%emt 0:00:21]} exd5 {[%emt 0:09:18]} 7. Bb2 {[%emt 0:00:32]} O-O {[%emt 0:01:42]} 8. d4 {[%emt 0:00:16]} Nc6 {[%emt 0:01:13]} 9. Be2 {[%emt 0:00:15]} cxd4 {[%emt 0:01:51]} 10. Nxd4 {[%emt 0:00:07]} Bc5 {[%emt 0:00:06]} 11. Nxc6 {[%emt 0:00:20]} bxc6 {[%emt 0:00:37]} 12. O-O {[%emt 0:00:07]} Qe7 {[%emt 0:07:28]} 13. Na4 {[%emt 0:03:09]} Bd6 {[%emt 0:07:25]} 14. Rc1 {[%emt 0:00:39]} Bd7 {[%emt 0:01:21]} 15. Qd4 {[%emt 0:00:08]} Rfb8 {[%emt 0:12:25]} 16. Qh4 {[%emt 0:07:41]} Rb4 {[%emt 0:09:31]} 17. Bxf6 {[%emt 0:06:59]} gxf6 {[%emt 0:00:03]} 18. Qh5 {[%emt 0:03:30]} f5 {[%emt 0:08:01]} 19. g3 {[%emt 0:03:33]} Kh8 {[%emt 0:14:03]} 20. Bd3 {[%emt 0:03:34]} Rg8 {[%emt 0:05:04]} 21. Kh1 {[%emt 0:01:41]} Rg5 {[%emt 0:02:43]} 22. Qf3 {[%emt 0:00:02]} h5 {[%emt 0:02:57]} 23. Nc3 {[%emt 0:03:28]} h4 {[%emt 0:00:47]} 24. Ne2 {[%emt 0:03:54]} Be5 {[%emt 0:07:33]} 25. Nf4 {[%emt 0:01:55]} Rg7 {[%emt 0:00:33]} 26. Rfd1 {[%emt 0:03:59]} a5 {[%emt 0:00:13]} 27. Rg1 {[%emt 0:11:57]} a4 {[%emt 0:01:12]} 28. bxa4 {[%emt 0:02:42]} Rxa4 {[%emt 0:00:04]} 29. Rb1 {[%emt 0:16:25]} Rxa2 {[%emt 0:01:11]} 30. Rb7 {[%emt 0:00:05]} Qd6 {[%emt 0:00:47]} 31. Nh5 {[%emt 0:00:05]} Rg5 {[%emt 0:01:13]} 32. gxh4 {[%emt 0:00:06]} Rxg1+ {[%emt 0:00:59]} 33. Kxg1 {[%emt 0:29:03]} Ra1+ {[%emt 0:00:51]} 34. Kg2 {[%emt 0:00:00]} Ra8 {[%emt 0:00:16]} 35. Ng3 {[%emt 0:00:00]} Rg8 {[%emt 0:00:30]} 36. Qh5+ {[%emt 0:00:00]} Kg7 {[%emt 0:00:05]} 37. Bxf5 {[%emt 0:00:00]} Be8 {[%emt 0:01:12]} 38. Bh7 {[%emt 0:00:00]} Bxg3 {[%emt 0:00:26]} 39. Bxg8 {[%emt 0:00:00]} Kxg8 {[%emt 0:00:23]} 40. hxg3 {[%emt 0:00:00]} Bd7 {[%emt 0:00:28]} 41. Qg5+ {[%emt 0:00:00]} Kh7 {[%emt 0:00:06]} 42. h5 {[%emt 0:00:00]} Qe6 {[%emt 0:00:20]} 43. h6 {[%emt 0:00:00]} Qh3+ {[%emt 0:00:15]} 44. Kg1 {[%emt 0:00:00]} Qxh6 {[%emt 0:00:09]} 45. Qxh6+ {[%emt 0:00:00]} Kxh6 {[%emt 0:00:03]} 46. Rxd7 {[%emt 0:00:00]} Kg6 {[%emt 0:00:08]} 47. Rd6+ {[%emt 0:00:00]} Kg5 {[%emt 0:00:04]} 48. Rxc6 {[%emt 0:00:00]} Kf5 {[%emt 0:00:03]} 49. Kg2 {[%emt 0:00:00]} Ke5 {[%emt 0:00:05]} 50. f4+ {[%emt 0:00:00]} Ke4 {[%emt 0:00:03]} 51. Rf6 {[%emt 0:00:00]} Kxe3 {[%emt 0:00:04]} 52. Rxf7 {[%emt 0:00:00]} d4 {[%emt 0:00:03]} 53. Re7+ {[%emt 0:00:00]} Kd2 {[%emt 0:00:04]} 54. f5 {[%emt 0:00:00]} d3 {[%emt 0:00:04]} 55. Kf2 {[%emt 0:00:00]} Kc2 {[%emt 0:00:03]} 56. Rd7 {[%emt 0:00:00]} d2 {[%emt 0:00:03]} 57. Ke2 {[%emt 0:00:00]} Kc3 {[%emt 0:00:11]} 58. Rxd2 {[%emt 0:00:00]} Kc4 {[%emt 0:00:02]} 59. f6 {[%emt 0:00:00]} Kc5 {[%emt 0:00:05]} 60. f7 {[%emt 0:00:00]} Kc6 {[%emt 0:00:02]} 61. f8=Q {[%emt 0:00:00]} Kc7 {[%emt 0:00:07]} 62. Qc5+ {[%emt 0:00:00]} Kb7 {[%emt 0:00:01]} 63. Rb2+ {[%emt 0:00:00]} Ka6 {[%emt 0:00:04]} 64. Qa3# {[%emt 0:00:00]} 1-0

[Event "Chinese Championship-B Men 2024"]
[Site "Liaocheng"]
[Date "2024.04.24"]
[Round "6.5"]
[White "Wang, Hao B"]
[Black "Zhou, Yuxu"]
[Result "1-0"]
[WhiteElo "2170"]
[BlackElo "1789"]
[PlyCount "67"]
[EventDate "2024.04.24"]
[EventType "swiss"]
[EventCountry "CHN"]
[TimeControl "5400+30"]

1. d4 {[%emt 0:00:30]} Nf6 {[%emt 0:04:24]} 2. c4 {[%emt 0:00:15]} e6 {[%emt 0:00:25]} 3. Nf3 {[%emt 0:00:19]} b6 {[%emt 0:00:03]} 4. Nbd2 {[%emt 0:03:23]} Bb7 {[%emt 0:02:22]} 5. e3 {[%emt 0:00:19]} d5 {[%emt 0:01:34]} 6. a3 {[%emt 0:00:54]} Bd6 {[%emt 0:06:43]} 7. b4 {[%emt 0:05:47]} c6 {[%emt 0:11:20]} 8. Bd3 {[%emt 0:01:16]} Nbd7 {[%emt 0:05:16]} 9. Bb2 {[%emt 0:02:07]} Qe7 {[%emt 0:01:39]} 10. O-O {[%emt 0:04:22]} O-O {[%emt 0:02:18]} 11. c5 {[%emt 0:00:33]} Bc7 {[%emt 0:00:41]} 12. Qc2 {[%emt 0:00:37]} bxc5 {[%emt 0:09:05]} 13. bxc5 {[%emt 0:00:12]} a5 {[%emt 0:01:42]} 14. Rab1 {[%emt 0:12:08]} Rfb8 {[%emt 0:05:32]} 15. Ba1 {[%emt 0:01:36]} e5 {[%emt 0:05:05]} 16. dxe5 {[%emt 0:00:30]} Nxe5 17. Nxe5 {[%emt 0:00:13]} Bxe5 {[%emt 0:00:22]} 18. Bxe5 {[%emt 0:00:30]} Qxe5 {[%emt 0:00:07]} 19. Nf3 {[%emt 0:01:48]} Qc7 {[%emt 0:04:14]} 20. Nd4 {[%emt 0:05:32]} Bc8 {[%emt 0:07:52]} 21. h3 {[%emt 0:00:52]} Bd7 {[%emt 0:02:33]} 22. Qa4 {[%emt 0:01:38]} g6 {[%emt 0:01:38]} 23. Rb3 {[%emt 0:01:16]} Rxb3 {[%emt 0:01:08]} 24. Nxb3 {[%emt 0:00:06]} Ne8 {[%emt 0:03:27]} 25. Rb1 {[%emt 0:02:53]} Qa7 {[%emt 0:02:55]} 26. Rc1 {[%emt 0:01:08]} Ng7 {[%emt 0:03:20]} 27. Nd4 {[%emt 0:04:31]} Qc7 {[%emt 0:00:50]} 28. Rb1 {[%emt 0:01:16]} Ne6 {[%emt 0:01:19]} 29. Nxe6 {[%emt 0:00:05]} Bxe6 {[%emt 0:00:51]} 30. Rb6 {[%emt 0:00:11]} Bd7 {[%emt 0:00:17]} 31. Ba6 {[%emt 0:00:44]} Qe5 {[%emt 0:02:12]} 32. Bb7 {[%emt 0:00:33]} Rb8 {[%emt 0:03:08]} 33. Bxc6 {[%emt 0:00:19]} Rxb6 {[%emt 0:01:41]} 34. cxb6 {[%emt 0:00:09]} 1-0

[Event "Chinese Championship-B Men 2024"]
[Site "Liaocheng"]
[Date "2024.04.24"]
[Round "6.7"]
[White "Yao, Yuhang"]
[Black "Chen, Zimu(Js)"]
[Result "0-1"]
[WhiteElo "1887"]
[BlackElo "2075"]
[PlyCount "182"]
[EventDate "2024.04.24"]
[EventType "swiss"]
[EventCountry "CHN"]
[TimeControl "5400+30"]

1. e4 {[%emt 0:00:01]} Nf6 {[%emt 0:00:11]} 2. e5 {[%emt 0:00:02]} Nd5 {[%emt 0:00:07]} 3. d4 {[%emt 0:00:02]} d6 {[%emt 0:00:07]} 4. Nf3 {[%emt 0:00:02]} g6 {[%emt 0:00:07]} 5. Bc4 {[%emt 0:01:41]} Nb6 {[%emt 0:00:13]} 6. Bb3 {[%emt 0:00:17]} Bg7 {[%emt 0:00:08]} 7. Qe2 {[%emt 0:00:17]} O-O {[%emt 0:00:38]} 8. h3 {[%emt 0:03:10]} Nc6 {[%emt 0:00:34]} 9. O-O {[%emt 0:01:35]} a5 {[%emt 0:01:01]} 10. c3 {[%emt 0:02:57]} a4 {[%emt 0:03:37]} 11. Bc2 {[%emt 0:00:04]} Be6 {[%emt 0:02:54]} 12. Na3 {[%emt 0:05:07]} Bd5 {[%emt 0:00:49]} 13. Be4 {[%emt 0:01:19]} dxe5 {[%emt 0:03:14]} 14. dxe5 {[%emt 0:00:16]} Bxe4 {[%emt 0:02:16]} 15. Qxe4 {[%emt 0:00:25]} Qd5 {[%emt 0:00:05]} 16. Qxd5 {[%emt 0:01:36]} Nxd5 {[%emt 0:00:36]} 17. Re1 {[%emt 0:01:22]} e6 {[%emt 0:00:24]} 18. Bd2 {[%emt 0:05:38]} Rfd8 {[%emt 0:02:35]} 19. Rad1 {[%emt 0:05:04]} h6 {[%emt 0:02:06]} 20. Nb5 {[%emt 0:03:14]} Na5 {[%emt 0:02:10]} 21. Bc1 {[%emt 0:02:06]} Bf8 {[%emt 0:08:12]} 22. a3 {[%emt 0:09:48]} Kh7 {[%emt 0:04:19]} 23. g3 {[%emt 0:01:38]} c6 {[%emt 0:01:04]} 24. Nbd4 {[%emt 0:00:04]} b5 {[%emt 0:02:45]} 25. Nc2 {[%emt 0:08:12]} c5 {[%emt 0:03:28]} 26. Nd2 {[%emt 0:02:51]} b4 {[%emt 0:03:45]} 27. cxb4 {[%emt 0:01:56]} cxb4 {[%emt 0:00:33]} 28. axb4 {[%emt 0:01:01]} Nxb4 {[%emt 0:00:28]} 29. Nxb4 {[%emt 0:00:03]} Bxb4 {[%emt 0:00:07]} 30. Rf1 {[%emt 0:01:16]} Rd5 {[%emt 0:01:09]} 31. Ne4 {[%emt 0:00:26]} Kg7 {[%emt 0:06:57]} 32. Nf6 {[%emt 0:07:38]} Rxd1 {[%emt 0:04:02]} 33. Rxd1 {[%emt 0:00:06]} Nc4 {[%emt 0:00:25]} 34. f4 {[%emt 0:07:16]} Bc5+ {[%emt 0:01:01]} 35. Kh1 {[%emt 0:02:07]} Be7 {[%emt 0:03:50]} 36. Ne4 {[%emt 0:00:45]} Ra7 {[%emt 0:01:31]} 37. Nc3 {[%emt 0:02:34]} Bb4 {[%emt 0:03:33]} 38. Rd4 {[%emt 0:01:17]} Rc7 {[%emt 0:00:04]} 39. Nxa4 {[%emt 0:01:09]} Nxe5 {[%emt 0:00:29]} 40. Bd2 {[%emt 0:01:36]} Bxd2 {[%emt 0:03:16]} 41. Rxd2 {[%emt 0:00:40]} Nf3 {[%emt 0:00:54]} 42. Re2 {[%emt 0:00:01]} Rc4 {[%emt 0:00:39]} 43. Nc3 {[%emt 0:00:18]} Rb4 {[%emt 0:01:04]} 44. Kg2 {[%emt 0:00:22]} Nd4 {[%emt 0:00:04]} 45. Rf2 {[%emt 0:01:39]} h5 {[%emt 0:03:03]} 46. h4 {[%emt 0:07:50]} Nf5 {[%emt 0:00:33]} 47. Re2 {[%emt 0:00:53]} Kf8 {[%emt 0:01:03]} 48. Kf2 {[%emt 0:00:25]} Rd4 {[%emt 0:00:57]} 49. Rc2 {[%emt 0:01:53]} Ke7 {[%emt 0:01:36]} 50. Ne2 {[%emt 0:00:57]} Rb4 {[%emt 0:00:57]} 51. Nc3 {[%emt 0:00:37]} Nd6 {[%emt 0:01:36]} 52. Kf3 {[%emt 0:01:20]} Rb3 {[%emt 0:00:30]} 53. Kg2 {[%emt 0:01:02]} Kf6 {[%emt 0:00:50]} 54. Ne2 {[%emt 0:00:14]} Nf5 {[%emt 0:00:23]} 55. Kf2 {[%emt 0:00:12]} Ne3 {[%emt 0:01:54]} 56. Nc1 {[%emt 0:01:38]} Rxb2 {[%emt 0:01:26]} 57. Rxb2 {[%emt 0:00:05]} Nd1+ {[%emt 0:00:02]} 58. Kf3 {[%emt 0:00:06]} Nxb2 {[%emt 0:00:05]} 59. Ne2 {[%emt 0:00:14]} Nc4 {[%emt 0:00:41]} 60. Nc3 {[%emt 0:00:06]} Kf5 {[%emt 0:00:30]} 61. Ne4 {[%emt 0:00:25]} e5 {[%emt 0:01:09]} 62. fxe5 {[%emt 0:00:27]} Nxe5+ {[%emt 0:00:06]} 63. Ke3 {[%emt 0:00:02]} Kg4 {[%emt 0:00:46]} 64. Kf2 {[%emt 0:00:33]} Kh3 {[%emt 0:00:51]} 65. Nc3 {[%emt 0:01:20]} Ng4+ {[%emt 0:07:36]} 66. Kf3 {[%emt 0:00:05]} Nf6 {[%emt 0:01:01]} 67. Ne2 {[%emt 0:00:44]} Nd5 {[%emt 0:00:33]} 68. Kf2 {[%emt 0:00:29]} Ne7 {[%emt 0:01:34]} 69. Ng1+ {[%emt 0:01:02]} Kg4 {[%emt 0:00:51]} 70. Nf3 {[%emt 0:00:03]} f6 {[%emt 0:01:20]} 71. Kg2 {[%emt 0:00:06]} Nc6 {[%emt 0:00:35]} 72. Nh2+ {[%emt 0:00:11]} Kf5 {[%emt 0:00:04]} 73. Nf1 {[%emt 0:00:57]} Ke4 {[%emt 0:00:47]} 74. Kf2 {[%emt 0:00:39]} Nd4 {[%emt 0:00:48]} 75. Ne3 {[%emt 0:00:20]} f5 {[%emt 0:01:16]} 76. Ng2 {[%emt 0:00:20]} Ne6 {[%emt 0:00:16]} 77. Ne1 {[%emt 0:00:16]} f4 {[%emt 0:02:08]} 78. Kg2 {[%emt 0:00:07]} Nd4 {[%emt 0:07:42]} 79. gxf4 {[%emt 0:00:56]} Nf5 {[%emt 0:01:40]} 80. Kh3 {[%emt 0:00:50]} Ne3 {[%emt 0:00:05]} 81. Kg3 {[%emt 0:00:06]} Nf1+ {[%emt 0:00:08]} 82. Kf2 {[%emt 0:00:43]} Nd2 {[%emt 0:00:15]} 83. Ng2 {[%emt 0:00:46]} Nf3 {[%emt 0:00:24]} 84. f5 {[%emt 0:01:00]} gxf5 {[%emt 0:00:05]} 85. Kg3 {[%emt 0:00:03]} Nd2 {[%emt 0:00:39]} 86. Kf2 {[%emt 0:00:29]} f4 {[%emt 0:00:50]} 87. Ne1 {[%emt 0:00:13]} f3 {[%emt 0:00:58]} 88. Nc2 {[%emt 0:00:30]} Kf4 {[%emt 0:00:05]} 89. Ne1 {[%emt 0:00:46]} Ne4+ {[%emt 0:00:08]} 90. Kf1 {[%emt 0:00:09]} Kg3 {[%emt 0:01:15]} 91. Nc2 {[%emt 0:01:10]} Nd2+ {[%emt 0:00:09]} 0-1

[Event "Chinese Championship-B Men 2024"]
[Site "Liaocheng"]
[Date "2024.04.24"]
[Round "6.8"]
[White "Yu, Chaojie"]
[Black "Hong, Mingren"]
[Result "1/2-1/2"]
[WhiteElo "2047"]
[BlackElo "1747"]
[PlyCount "60"]
[EventDate "2024.04.24"]
[EventType "swiss"]
[EventCountry "CHN"]
[TimeControl "5400+30"]

1. c4 {[%emt 0:00:10]} Nf6 {[%emt 0:00:04]} 2. Nf3 {[%emt 0:00:14]} g6 {[%emt 0:00:24]} 3. b3 {[%emt 0:00:43]} Bg7 {[%emt 0:00:26]} 4. Bb2 {[%emt 0:00:05]} O-O {[%emt 0:00:17]} 5. g3 {[%emt 0:00:20]} c6 {[%emt 0:00:07]} 6. Bg2 {[%emt 0:00:32]} d5 {[%emt 0:00:18]} 7. O-O {[%emt 0:01:18]} a5 {[%emt 0:00:32]} 8. d3 {[%emt 0:01:17]} a4 {[%emt 0:00:55]} 9. Na3 {[%emt 0:06:47]} Na6 {[%emt 0:06:28]} 10. Nc2 {[%emt 0:02:58]} Nc7 {[%emt 0:04:52]} 11. Rb1 {[%emt 0:03:27]} axb3 {[%emt 0:00:42]} 12. axb3 {[%emt 0:00:07]} c5 {[%emt 0:05:53]} 13. Ra1 {[%emt 0:06:47]} Bd7 {[%emt 0:03:52]} 14. Be5 {[%emt 0:06:20]} Bc6 {[%emt 0:03:34]} 15. Rxa8 {[%emt 0:02:03]} Nxa8 {[%emt 0:00:05]} 16. Qa1 {[%emt 0:01:34]} dxc4 {[%emt 0:07:53]} 17. bxc4 {[%emt 0:00:42]} Nb6 {[%emt 0:00:49]} 18. Rb1 {[%emt 0:01:52]} Nbd7 {[%emt 0:00:30]} 19. Bc3 {[%emt 0:00:32]} Qc7 {[%emt 0:00:48]} 20. Ne5 {[%emt 0:10:33]} Bxg2 {[%emt 0:01:19]} 21. Nxd7 {[%emt 0:01:13]} Qxd7 {[%emt 0:01:13]} 22. Kxg2 {[%emt 0:00:05]} Qc6+ {[%emt 0:02:31]} 23. Kg1 {[%emt 0:00:53]} b6 {[%emt 0:03:53]} 24. Ne3 {[%emt 0:10:29]} Rb8 {[%emt 0:03:51]} 25. Qa7 {[%emt 0:06:21]} Nd7 {[%emt 0:00:49]} 26. Nd5 {[%emt 0:02:20]} Qd6 {[%emt 0:01:16]} 27. Bxg7 {[%emt 0:01:12]} Kxg7 {[%emt 0:00:19]} 28. Rb5 {[%emt 0:04:06]} h5 {[%emt 0:01:19]} 29. h4 {[%emt 0:03:48]} f6 {[%emt 0:09:34]} 30. Qa1 {[%emt 0:07:02]} Kf7 {[%emt 0:00:25]} 1/2-1/2

[Event "Chinese Championship-B Men 2024"]
[Site "Liaocheng"]
[Date "2024.04.24"]
[Round "6.9"]
[White "Jin, Yueheng"]
[Black "Xu, Ziyuan"]
[Result "1/2-1/2"]
[WhiteElo "2407"]
[BlackElo "1872"]
[PlyCount "63"]
[EventDate "2024.04.24"]
[EventType "swiss"]
[EventCountry "CHN"]
[TimeControl "5400+30"]

1. d4 {[%emt 0:00:04]} Nf6 {[%emt 0:07:09]} 2. c4 {[%emt 0:00:05]} g6 {[%emt 0:00:02]} 3. g3 {[%emt 0:00:04]} c6 {[%emt 0:00:02]} 4. Bg2 {[%emt 0:00:13]} d5 {[%emt 0:00:03]} 5. cxd5 {[%emt 0:00:27]} cxd5 {[%emt 0:00:04]} 6. Nf3 {[%emt 0:00:05]} Bg7 {[%emt 0:00:06]} 7. O-O {[%emt 0:00:07]} O-O {[%emt 0:00:03]} 8. Nc3 {[%emt 0:00:04]} Nc6 {[%emt 0:00:03]} 9. Ne5 {[%emt 0:00:06]} Bf5 {[%emt 0:00:04]} 10. Bf4 {[%emt 0:01:40]} Ne4 {[%emt 0:11:24]} 11. Rc1 {[%emt 0:03:16]} Rc8 {[%emt 0:02:03]} 12. Qa4 {[%emt 0:15:03]} Nxc3 {[%emt 0:36:16]} 13. Rxc3 {[%emt 0:03:47]} Qb6 {[%emt 0:02:18]} 14. Nxc6 {[%emt 0:34:06]} bxc6 {[%emt 0:37:53]} 15. e3 {[%emt 0:02:03]} Qxb2 {[%emt 0:00:00]} 16. Qa3 {[%emt 0:08:16]} Qxa3 {[%emt 0:00:00]} 17. Rxa3 {[%emt 0:00:01]} c5 {[%emt 0:00:00]} 18. Rxa7 {[%emt 0:08:37]} cxd4 {[%emt 0:00:00]} 19. Rxe7 {[%emt 0:01:17]} dxe3 {[%emt 0:00:00]} 20. fxe3 {[%emt 0:08:25]} d4 {[%emt 0:00:00]} 21. exd4 {[%emt 0:00:07]} Bxd4+ {[%emt 0:00:00]} 22. Be3 {[%emt 0:00:19]} Bxe3+ {[%emt 0:00:00]} 23. Rxe3 {[%emt 0:00:02]} Rfd8 {[%emt 0:00:00]} 24. a4 {[%emt 0:02:59]} Rd2 {[%emt 0:00:00]} 25. Ra1 {[%emt 0:00:47]} Rcc2 {[%emt 0:00:00]} 26. Bf3 {[%emt 0:00:58]} Bh3 {[%emt 0:00:00]} 27. Be4 {[%emt 0:09:39]} Rb2 {[%emt 0:00:00]} 28. Rd3 {[%emt 0:00:32]} Re2 {[%emt 0:00:00]} 29. Bf3 {[%emt 0:00:31]} Rec2 {[%emt 0:00:00]} 30. Be4 {[%emt 0:01:11]} Re2 {[%emt 0:00:00]} 31. Bf3 {[%emt 0:00:03]} Rec2 {[%emt 0:00:00]} 32. Be4 {[%emt 0:00:03]} 1/2-1/2

[Event "Chinese Championship-B Men 2024"]
[Site "Liaocheng"]
[Date "2024.04.24"]
[Round "6.10"]
[White "Xie, Jianjun"]
[Black "Zhang, Haoxuan(Zj)"]
[Result "1/2-1/2"]
[WhiteElo "2384"]
[BlackElo "1851"]
[PlyCount "68"]
[EventDate "2024.04.24"]
[EventType "swiss"]
[EventCountry "CHN"]
[TimeControl "5400+30"]

1. f4 {[%emt 0:00:35]} Nf6 {[%emt 0:01:24]} 2. Nf3 {[%emt 0:00:05]} g6 {[%emt 0:01:14]} 3. b3 {[%emt 0:00:48]} Bg7 {[%emt 0:00:51]} 4. Bb2 {[%emt 0:00:02]} O-O {[%emt 0:01:18]} 5. e3 {[%emt 0:01:36]} d6 {[%emt 0:00:44]} 6. Be2 {[%emt 0:01:18]} a5 {[%emt 0:01:13]} 7. a4 {[%emt 0:02:11]} b6 {[%emt 0:01:24]} 8. O-O {[%emt 0:00:08]} Bb7 {[%emt 0:00:24]} 9. Qe1 {[%emt 0:01:49]} Nc6 {[%emt 0:06:26]} 10. Na3 {[%emt 0:03:08]} e6 {[%emt 0:01:05]} 11. Rd1 {[%emt 0:10:44]} Ne7 {[%emt 0:01:53]} 12. Nc4 {[%emt 0:06:23]} Nf5 {[%emt 0:02:44]} 13. Bd3 {[%emt 0:05:04]} Ne4 {[%emt 0:01:54]} 14. Bxg7 {[%emt 0:03:14]} Nxg7 {[%emt 0:01:03]} 15. Bxe4 {[%emt 0:01:42]} Bxe4 {[%emt 0:00:02]} 16. d3 {[%emt 0:00:07]} Bxf3 {[%emt 0:00:06]} 17. Rxf3 {[%emt 0:00:03]} c6 {[%emt 0:05:19]} 18. Qc3 {[%emt 0:03:42]} b5 {[%emt 0:01:26]} 19. Nd2 {[%emt 0:00:20]} b4 {[%emt 0:01:23]} 20. Qa1 {[%emt 0:06:08]} d5 {[%emt 0:02:27]} 21. Rh3 {[%emt 0:00:09]} f6 {[%emt 0:02:01]} 22. Re1 {[%emt 0:14:44]} Qb6 {[%emt 0:01:26]} 23. Re2 {[%emt 0:00:54]} Rae8 {[%emt 0:04:50]} 24. Nf3 {[%emt 0:01:08]} c5 {[%emt 0:00:51]} 25. g4 {[%emt 0:00:52]} Qd6 {[%emt 0:02:48]} 26. Qe1 {[%emt 0:02:20]} Re7 {[%emt 0:03:46]} 27. Qh4 {[%emt 0:00:56]} Ne8 {[%emt 0:00:08]} 28. g5 {[%emt 0:01:38]} Rg7 {[%emt 0:00:59]} 29. gxf6 {[%emt 0:06:10]} Nxf6 {[%emt 0:00:07]} 30. Rg2 {[%emt 0:00:10]} Qd8 {[%emt 0:06:18]} 31. Qg5 {[%emt 0:02:10]} Qe8 {[%emt 0:03:20]} 32. Qe5 {[%emt 0:03:55]} Nd7 {[%emt 0:00:54]} 33. Qc7 {[%emt 0:00:12]} Qd8 {[%emt 0:02:17]} 34. Qc6 {[%emt 0:02:53]} Qb6 {[%emt 0:00:30]} 1/2-1/2

[Event "Chinese Championship-B Men 2024"]
[Site "Liaocheng"]
[Date "2024.04.24"]
[Round "6.11"]
[White "Jiang, Haochen"]
[Black "Gong, Yiming"]
[Result "1-0"]
[WhiteElo "2381"]
[BlackElo "1844"]
[PlyCount "79"]
[EventDate "2024.04.24"]
[EventType "swiss"]
[EventCountry "CHN"]
[TimeControl "5400+30"]

1. d4 {[%emt 0:02:57]} Nf6 {[%emt 0:00:03]} 2. Nf3 {[%emt 0:00:11]} g6 {[%emt 0:00:47]} 3. c4 {[%emt 0:00:16]} Bg7 {[%emt 0:01:39]} 4. Nc3 {[%emt 0:01:10]} d5 {[%emt 0:00:04]} 5. Qb3 {[%emt 0:00:22]} dxc4 {[%emt 0:07:05]} 6. Qxc4 {[%emt 0:00:24]} c6 {[%emt 0:00:50]} 7. e4 {[%emt 0:01:59]} Nbd7 {[%emt 0:00:18]} 8. e5 {[%emt 0:09:10]} Nb6 {[%emt 0:11:03]} 9. exf6 {[%emt 0:01:04]} Nxc4 {[%emt 0:00:05]} 10. fxg7 {[%emt 0:00:11]} Rg8 {[%emt 0:00:02]} 11. Bxc4 {[%emt 0:00:13]} Rxg7 {[%emt 0:08:56]} 12. Bh6 {[%emt 0:03:13]} Rg8 {[%emt 0:00:38]} 13. O-O-O {[%emt 0:01:20]} b5 {[%emt 0:07:42]} 14. Bb3 {[%emt 0:01:48]} Be6 {[%emt 0:11:30]} 15. d5 {[%emt 0:04:56]} cxd5 {[%emt 0:00:10]} 16. Nxd5 {[%emt 0:00:24]} a5 {[%emt 0:06:11]} 17. a4 {[%emt 0:02:37]} Ra6 {[%emt 0:07:18]} 18. Bf4 {[%emt 0:02:16]} Bxd5 {[%emt 0:06:19]} 19. Rxd5 {[%emt 0:00:53]} Qc8+ {[%emt 0:00:16]} 20. Kb1 {[%emt 0:00:15]} e6 {[%emt 0:00:57]} 21. Rxb5 {[%emt 0:00:45]} Ke7 {[%emt 0:00:54]} 22. Ne5 {[%emt 0:00:48]} Qa8 {[%emt 0:06:09]} 23. Ka2 {[%emt 0:02:34]} Rd8 {[%emt 0:09:52]} 24. Rc1 {[%emt 0:04:29]} Rc8 {[%emt 0:00:16]} 25. Rxc8 {[%emt 0:00:37]} Qxc8 {[%emt 0:00:07]} 26. Rb8 {[%emt 0:00:21]} Qc5 {[%emt 0:03:28]} 27. Bg5+ {[%emt 0:01:35]} Kd6 {[%emt 0:00:12]} 28. Nxf7+ {[%emt 0:00:44]} Kd7 {[%emt 0:03:34]} 29. Rd8+ {[%emt 0:01:09]} Kc7 {[%emt 0:00:08]} 30. Bf4+ {[%emt 0:00:50]} Kb7 {[%emt 0:01:13]} 31. Nd6+ {[%emt 0:00:26]} Rxd6 {[%emt 0:00:37]} 32. Rxd6 {[%emt 0:01:46]} Qxf2 {[%emt 0:00:12]} 33. Bg3 {[%emt 0:00:09]} Qxg2 {[%emt 0:00:28]} 34. Rxe6 {[%emt 0:00:04]} g5 {[%emt 0:02:11]} 35. Re7+ {[%emt 0:00:13]} Kc6 {[%emt 0:01:33]} 36. Rxh7 {[%emt 0:00:09]} Qd2 {[%emt 0:05:43]} 37. Rc7+ {[%emt 0:00:57]} Kb6 {[%emt 0:00:00]} 38. Rc2 {[%emt 0:00:05]} Qd3 {[%emt 0:00:00]} 39. Bf2+ {[%emt 0:00:12]} Kb7 {[%emt 0:00:00]} 40. Rc5 {[%emt 0:00:07]} 1-0

[Event "Chinese Championship-B Men 2024"]
[Site "Liaocheng"]
[Date "2024.04.24"]
[Round "6.12"]
[White "Jiang, Qinyu"]
[Black "Li, Zhanjia"]
[Result "1-0"]
[WhiteElo "2319"]
[BlackElo "1839"]
[PlyCount "63"]
[EventDate "2024.04.24"]
[EventType "swiss"]
[EventCountry "CHN"]
[TimeControl "5400+30"]

1. e4 {[%emt 0:02:28]} e5 {[%emt 0:00:05]} 2. Nf3 {[%emt 0:00:03]} Nf6 {[%emt 0:00:13]} 3. d4 {[%emt 0:00:05]} Nxe4 {[%emt 0:00:11]} 4. Bd3 {[%emt 0:00:02]} d5 {[%emt 0:00:07]} 5. Nxe5 {[%emt 0:00:02]} Nd7 {[%emt 0:00:07]} 6. Nxd7 {[%emt 0:00:01]} Bxd7 {[%emt 0:00:16]} 7. O-O {[%emt 0:00:03]} Bd6 {[%emt 0:00:39]} 8. Nc3 {[%emt 0:00:01]} Nxc3 {[%emt 0:01:18]} 9. bxc3 {[%emt 0:00:01]} O-O {[%emt 0:00:09]} 10. Qh5 {[%emt 0:00:01]} f5 {[%emt 0:00:07]} 11. Re1 {[%emt 0:00:02]} Qf6 {[%emt 0:07:58]} 12. Qf3 {[%emt 0:00:06]} c6 {[%emt 0:02:03]} 13. Bf4 {[%emt 0:00:03]} Rae8 {[%emt 0:09:13]} 14. h4 {[%emt 0:01:38]} g6 {[%emt 0:09:26]} 15. c4 {[%emt 0:15:16]} Re4 {[%emt 0:08:36]} 16. Bxd6 {[%emt 0:07:05]} Rxe1+ {[%emt 0:01:03]} 17. Rxe1 {[%emt 0:01:45]} Qxd6 {[%emt 0:00:05]} 18. Re5 {[%emt 0:17:00]} Re8 {[%emt 0:08:52]} 19. Qe3 {[%emt 0:07:24]} Rxe5 {[%emt 0:05:11]} 20. dxe5 {[%emt 0:00:11]} d4 {[%emt 0:00:01]} 21. Qf4 {[%emt 0:05:16]} Qc5 {[%emt 0:00:51]} 22. h5 {[%emt 0:01:24]} Be6 {[%emt 0:02:28]} 23. g4 {[%emt 0:05:37]} Bxc4 {[%emt 0:08:38]} 24. gxf5 {[%emt 0:03:15]} Bxd3 {[%emt 0:05:04]} 25. cxd3 {[%emt 0:00:01]} gxf5 {[%emt 0:00:36]} 26. Qg5+ {[%emt 0:01:19]} Kf7 {[%emt 0:00:58]} 27. Qxf5+ {[%emt 0:00:22]} Kg7 {[%emt 0:00:12]} 28. h6+ {[%emt 0:02:22]} Kxh6 {[%emt 0:00:32]} 29. Qf6+ {[%emt 0:01:29]} Kh5 {[%emt 0:00:02]} 30. e6 {[%emt 0:00:09]} Qc1+ {[%emt 0:00:23]} 31. Kg2 {[%emt 0:00:59]} Qd1 {[%emt 0:00:32]} 32. e7 {[%emt 0:00:41]} 1-0